{"text_format":"1","workbook":"xlsx","n_sheets":7,"sheets":["Accueil","Bilan EVALUATION BAD","BAD Evaluation-Mait 12 pts","BAD Evaluation-Perf 6pts","BAD Evaluation-Arbitrage 2pts","Critères Evaluation BAD","Attendus FinCycle-Compétences"],"not_rendered":{"charts":0,"images":14,"macros":1,"external_links":0,"defined_names":0,"comments":0,"pivot_tables":0},"unopened":[],"bounds":{"document_bytes":16777216,"sheet_cells":100000,"rows_first":2000,"rows_last":500,"rows_between":2000,"halvings":0,"cell_chars":16384,"cell_head_chars":4096},"cells_cut":0,"cells_raw":0,"read":"whole","date_system":"1900"}

{"sheet":"Accueil","index":0,"n_rows":0,"n_cols":0,"rows_kept":0,"cut":false,"hidden":false,"merged":[]}

{"sheet":"Bilan EVALUATION BAD","index":1,"n_rows":30,"n_cols":11,"rows_kept":30,"cut":false,"hidden":false,"merged":[]}
["NOM","PRENOM","Fille ou Garçon","Note ME / 12pts","Note Perf / 6pts","Règles + Arbitrage /2 pts","NOTE/20","NOTE arrondie/20","Bilan\nAttendu n°1","Bilan\nAttendu n°2","Bilan\nAttendus n°4-5"]
[null,null,null,{"$f":"'BAD Evaluation-Mait 12 pts'!S5","v":""},{"$f":"'BAD Evaluation-Perf 6pts'!G3","v":1},{"$f":"'BAD Evaluation-Arbitrage 2pts'!D2","v":0},{"$f":"SUM(D2:F2)","v":1},17.5,{"$f":"'BAD Evaluation-Mait 12 pts'!U5","v":"NNot"},{"$f":"'BAD Evaluation-Mait 12 pts'!V5","v":"NNot"},{"$f":"IF(G2<=1,\"NNot\",IF(F2=2,\"TB\",IF(F2>=1.5,\"MS\",IF(F2>=1,\"MF\",\"MI\"))))","v":"NNot"}]
[null,null,null,{"$f":"'BAD Evaluation-Mait 12 pts'!S6","v":""},{"$f":"'BAD Evaluation-Perf 6pts'!G4","v":1},{"$f":"'BAD Evaluation-Arbitrage 2pts'!D3","v":0},1,13,{"$f":"'BAD Evaluation-Mait 12 pts'!U6","v":"NNot"},{"$f":"'BAD Evaluation-Mait 12 pts'!V6","v":"NNot"},{"$f":"IF(G3<=1,\"NNot\",IF(F3=2,\"TB\",IF(F3>=1.5,\"MS\",IF(F3>=1,\"MF\",\"MI\"))))","v":"NNot"}]
[null,null,null,{"$f":"'BAD Evaluation-Mait 12 pts'!S7","v":""},{"$f":"'BAD Evaluation-Perf 6pts'!G5","v":1},{"$f":"'BAD Evaluation-Arbitrage 2pts'!D4","v":0},1,14,{"$f":"'BAD Evaluation-Mait 12 pts'!U7","v":"NNot"},{"$f":"'BAD Evaluation-Mait 12 pts'!V7","v":"NNot"},"NNot"]
[null,null,null,{"$f":"'BAD Evaluation-Mait 12 pts'!S8","v":""},{"$f":"'BAD Evaluation-Perf 6pts'!G6","v":1},{"$f":"'BAD Evaluation-Arbitrage 2pts'!D5","v":0},1,18,{"$f":"'BAD Evaluation-Mait 12 pts'!U8","v":"NNot"},{"$f":"'BAD Evaluation-Mait 12 pts'!V8","v":"NNot"},"NNot"]
[null,null,null,{"$f":"'BAD Evaluation-Mait 12 pts'!S9","v":""},{"$f":"'BAD Evaluation-Perf 6pts'!G7","v":1},{"$f":"'BAD Evaluation-Arbitrage 2pts'!D6","v":0},1,17.5,{"$f":"'BAD Evaluation-Mait 12 pts'!U9","v":"NNot"},{"$f":"'BAD Evaluation-Mait 12 pts'!V9","v":"NNot"},"NNot"]
[null,null,null,{"$f":"'BAD Evaluation-Mait 12 pts'!S10","v":""},{"$f":"'BAD Evaluation-Perf 6pts'!G8","v":1},{"$f":"'BAD Evaluation-Arbitrage 2pts'!D7","v":0},1,16.5,{"$f":"'BAD Evaluation-Mait 12 pts'!U10","v":"NNot"},{"$f":"'BAD Evaluation-Mait 12 pts'!V10","v":"NNot"},"NNot"]
[null,null,null,{"$f":"'BAD Evaluation-Mait 12 pts'!S11","v":""},{"$f":"'BAD Evaluation-Perf 6pts'!G9","v":1},{"$f":"'BAD Evaluation-Arbitrage 2pts'!D8","v":0},1,18.5,{"$f":"'BAD Evaluation-Mait 12 pts'!U11","v":"NNot"},{"$f":"'BAD Evaluation-Mait 12 pts'!V11","v":"NNot"},"NNot"]
[null,null,null,{"$f":"'BAD Evaluation-Mait 12 pts'!S12","v":""},{"$f":"'BAD Evaluation-Perf 6pts'!G10","v":1},{"$f":"'BAD Evaluation-Arbitrage 2pts'!D9","v":0},1,15,{"$f":"'BAD Evaluation-Mait 12 pts'!U12","v":"NNot"},{"$f":"'BAD Evaluation-Mait 12 pts'!V12","v":"NNot"},"NNot"]
[null,null,null,{"$f":"'BAD Evaluation-Mait 12 pts'!S13","v":""},{"$f":"'BAD Evaluation-Perf 6pts'!G11","v":1},{"$f":"'BAD Evaluation-Arbitrage 2pts'!D10","v":0},1,16,{"$f":"'BAD Evaluation-Mait 12 pts'!U13","v":"NNot"},{"$f":"'BAD Evaluation-Mait 12 pts'!V13","v":"NNot"},"NNot"]
[null,null,null,{"$f":"'BAD Evaluation-Mait 12 pts'!S14","v":""},{"$f":"'BAD Evaluation-Perf 6pts'!G12","v":1},{"$f":"'BAD Evaluation-Arbitrage 2pts'!D11","v":0},1,13.5,{"$f":"'BAD Evaluation-Mait 12 pts'!U14","v":"NNot"},{"$f":"'BAD Evaluation-Mait 12 pts'!V14","v":"NNot"},"NNot"]
[null,null,null,{"$f":"'BAD Evaluation-Mait 12 pts'!S15","v":""},{"$f":"'BAD Evaluation-Perf 6pts'!G13","v":1},{"$f":"'BAD Evaluation-Arbitrage 2pts'!D12","v":0},1,19,{"$f":"'BAD Evaluation-Mait 12 pts'!U15","v":"NNot"},{"$f":"'BAD Evaluation-Mait 12 pts'!V15","v":"NNot"},"NNot"]
[null,null,null,{"$f":"'BAD Evaluation-Mait 12 pts'!S16","v":""},{"$f":"'BAD Evaluation-Perf 6pts'!G14","v":1},{"$f":"'BAD Evaluation-Arbitrage 2pts'!D13","v":0},1,16.5,{"$f":"'BAD Evaluation-Mait 12 pts'!U16","v":"NNot"},{"$f":"'BAD Evaluation-Mait 12 pts'!V16","v":"NNot"},"NNot"]
[null,null,null,{"$f":"'BAD Evaluation-Mait 12 pts'!S17","v":""},{"$f":"'BAD Evaluation-Perf 6pts'!G15","v":1},{"$f":"'BAD Evaluation-Arbitrage 2pts'!D14","v":0},1,12,{"$f":"'BAD Evaluation-Mait 12 pts'!U17","v":"NNot"},{"$f":"'BAD Evaluation-Mait 12 pts'!V17","v":"NNot"},"NNot"]
[null,null,null,{"$f":"'BAD Evaluation-Mait 12 pts'!S18","v":""},{"$f":"'BAD Evaluation-Perf 6pts'!G16","v":1},{"$f":"'BAD Evaluation-Arbitrage 2pts'!D15","v":0},1,12.5,{"$f":"'BAD Evaluation-Mait 12 pts'!U18","v":"NNot"},{"$f":"'BAD Evaluation-Mait 12 pts'!V18","v":"NNot"},"NNot"]
[null,null,null,{"$f":"'BAD Evaluation-Mait 12 pts'!S19","v":""},{"$f":"'BAD Evaluation-Perf 6pts'!G17","v":1},{"$f":"'BAD Evaluation-Arbitrage 2pts'!D16","v":0},1,16.5,{"$f":"'BAD Evaluation-Mait 12 pts'!U19","v":"NNot"},{"$f":"'BAD Evaluation-Mait 12 pts'!V19","v":"NNot"},"NNot"]
[null,null,null,{"$f":"'BAD Evaluation-Mait 12 pts'!S20","v":""},{"$f":"'BAD Evaluation-Perf 6pts'!G18","v":1},{"$f":"'BAD Evaluation-Arbitrage 2pts'!D17","v":0},1,13,{"$f":"'BAD Evaluation-Mait 12 pts'!U20","v":"NNot"},{"$f":"'BAD Evaluation-Mait 12 pts'!V20","v":"NNot"},"NNot"]
[null,null,null,{"$f":"'BAD Evaluation-Mait 12 pts'!S21","v":""},{"$f":"'BAD Evaluation-Perf 6pts'!G19","v":1},{"$f":"'BAD Evaluation-Arbitrage 2pts'!D18","v":0},1,17,{"$f":"'BAD Evaluation-Mait 12 pts'!U21","v":"NNot"},{"$f":"'BAD Evaluation-Mait 12 pts'!V21","v":"NNot"},"NNot"]
[null,null,null,{"$f":"'BAD Evaluation-Mait 12 pts'!S22","v":""},{"$f":"'BAD Evaluation-Perf 6pts'!G20","v":1},{"$f":"'BAD Evaluation-Arbitrage 2pts'!D19","v":0},1,11.5,{"$f":"'BAD Evaluation-Mait 12 pts'!U22","v":"NNot"},{"$f":"'BAD Evaluation-Mait 12 pts'!V22","v":"NNot"},"NNot"]
[null,null,null,{"$f":"'BAD Evaluation-Mait 12 pts'!S23","v":""},{"$f":"'BAD Evaluation-Perf 6pts'!G21","v":1},{"$f":"'BAD Evaluation-Arbitrage 2pts'!D20","v":0},1,14,{"$f":"'BAD Evaluation-Mait 12 pts'!U23","v":"NNot"},{"$f":"'BAD Evaluation-Mait 12 pts'!V23","v":"NNot"},"NNot"]
[null,null,null,{"$f":"'BAD Evaluation-Mait 12 pts'!S24","v":""},{"$f":"'BAD Evaluation-Perf 6pts'!G22","v":1},{"$f":"'BAD Evaluation-Arbitrage 2pts'!D21","v":0},1,15,{"$f":"'BAD Evaluation-Mait 12 pts'!U24","v":"NNot"},{"$f":"'BAD Evaluation-Mait 12 pts'!V24","v":"NNot"},"NNot"]
[null,null,null,{"$f":"'BAD Evaluation-Mait 12 pts'!S25","v":""},{"$f":"'BAD Evaluation-Perf 6pts'!G23","v":1},{"$f":"'BAD Evaluation-Arbitrage 2pts'!D22","v":0},1,14,{"$f":"'BAD Evaluation-Mait 12 pts'!U25","v":"NNot"},{"$f":"'BAD Evaluation-Mait 12 pts'!V25","v":"NNot"},"NNot"]
[null,null,null,{"$f":"'BAD Evaluation-Mait 12 pts'!S26","v":""},{"$f":"'BAD Evaluation-Perf 6pts'!G24","v":1},{"$f":"'BAD Evaluation-Arbitrage 2pts'!D23","v":0},1,"Disp",{"$f":"'BAD Evaluation-Mait 12 pts'!U26","v":"NNot"},{"$f":"'BAD Evaluation-Mait 12 pts'!V26","v":"NNot"},"NNot"]
[null,null,null,{"$f":"'BAD Evaluation-Mait 12 pts'!S27","v":""},{"$f":"'BAD Evaluation-Perf 6pts'!G25","v":1},{"$f":"'BAD Evaluation-Arbitrage 2pts'!D24","v":0},1,15,{"$f":"'BAD Evaluation-Mait 12 pts'!U27","v":"NNot"},{"$f":"'BAD Evaluation-Mait 12 pts'!V27","v":"NNot"},"NNot"]
[null,null,null,{"$f":"'BAD Evaluation-Mait 12 pts'!S28","v":""},{"$f":"'BAD Evaluation-Perf 6pts'!G26","v":1},{"$f":"'BAD Evaluation-Arbitrage 2pts'!D25","v":0},1,20,{"$f":"'BAD Evaluation-Mait 12 pts'!U28","v":"NNot"},{"$f":"'BAD Evaluation-Mait 12 pts'!V28","v":"NNot"},"NNot"]
[null,null,null,{"$f":"'BAD Evaluation-Mait 12 pts'!S29","v":""},{"$f":"'BAD Evaluation-Perf 6pts'!G27","v":1},{"$f":"'BAD Evaluation-Arbitrage 2pts'!D26","v":0},1,10,{"$f":"'BAD Evaluation-Mait 12 pts'!U29","v":"NNot"},{"$f":"'BAD Evaluation-Mait 12 pts'!V29","v":"NNot"},"NNot"]
[null,null,null,{"$f":"'BAD Evaluation-Mait 12 pts'!S30","v":""},{"$f":"'BAD Evaluation-Perf 6pts'!G28","v":1},{"$f":"'BAD Evaluation-Arbitrage 2pts'!D27","v":0},1,null,{"$f":"'BAD Evaluation-Mait 12 pts'!U30","v":"NNot"},{"$f":"'BAD Evaluation-Mait 12 pts'!V30","v":"NNot"},"NNot"]
[null,null,null,{"$f":"'BAD Evaluation-Mait 12 pts'!S31","v":""},{"$f":"'BAD Evaluation-Perf 6pts'!G29","v":1},{"$f":"'BAD Evaluation-Arbitrage 2pts'!D28","v":0},{"$f":"SUM(D28:F28)","v":1},null,{"$f":"'BAD Evaluation-Mait 12 pts'!U31","v":"NNot"},{"$f":"'BAD Evaluation-Mait 12 pts'!V31","v":"NNot"},{"$f":"IF(G28<=1,\"NNot\",IF(F28=2,\"TB\",IF(F28>=1.5,\"MS\",IF(F28>=1,\"MF\",\"MI\"))))","v":"NNot"}]
[null,null,null,{"$f":"'BAD Evaluation-Mait 12 pts'!S32","v":0},{"$f":"'BAD Evaluation-Perf 6pts'!G30","v":1},{"$f":"'BAD Evaluation-Arbitrage 2pts'!D29","v":0},{"$f":"SUM(D29:F29)","v":1},null,{"$f":"'BAD Evaluation-Mait 12 pts'!U32","v":0},{"$f":"'BAD Evaluation-Mait 12 pts'!V32","v":0},{"$f":"IF(G29<=1,\"NNot\",IF(F29=2,\"TB\",IF(F29>=1.5,\"MS\",IF(F29>=1,\"MF\",\"MI\"))))","v":"NNot"}]
[null,null,null,{"$f":"'BAD Evaluation-Mait 12 pts'!S33","v":0},{"$f":"'BAD Evaluation-Perf 6pts'!G31","v":1},{"$f":"'BAD Evaluation-Arbitrage 2pts'!D30","v":0},1,null,{"$f":"'BAD Evaluation-Mait 12 pts'!U33","v":0},{"$f":"'BAD Evaluation-Mait 12 pts'!V33","v":0},"NNot"]

{"sheet":"BAD Evaluation-Mait 12 pts","index":2,"n_rows":31,"n_cols":22,"rows_kept":31,"cut":false,"hidden":false,"merged":[[0,1,0,21],[1,20,2,20],[1,21,2,21],[1,19,2,19],[1,17,2,17],[1,1,1,3],[1,5,1,8],[1,10,1,12],[1,14,1,16],[1,4,2,4],[1,9,2,9],[1,13,2,13]]}
[null,"MAITRISE"]
["Classe","Placement / volant sur frappe haute\nA1",null,null,"Niveau de maîtrise","Replacement / Terrain (condition initiale: déplacement 1er)\nA2",null,null,null,"Niveau de maîtrise","Cible au sol\nA1",null,null,"Niveau de maîtrise","Trajectoires du volant\nA1",null,null,"Niveau de maîtrise","Total","Attendu n°1\n%age d'acquisition","Bilan\nAttendu n°1","Bilan\nAttendu n°2"]
["Elèves","En retard non provoqué (efficacité faible)","Excentré (efficacité moyenne)","Sous le volant (efficacité optimale)",null,"Ne se replace pas au centre après frappe (inefficacité)","Se replace parfois et/ou mal centré (efficacité faible)","Se replace en retard  - \"contre-pied\" (efficacité moyenne)","Se replace dès la frappe (efficacité optimale)",null,"Zone 1 (centrale - efficacité faible)","Zone 2 + Alternance 1 zone (efficacité moyenne)","Zone 3 + Alternance 2 zones (efficacité optimale)",null,"Hautes fav à l'adv /Smash adverse!! (efficacité faible)","Hautes défav à l'adversaire /déséquilibre (efficacité moyenne)","Rasant le filet /Tps réaction adv réduit (efficacité optimale)",null,"12 points"]
[null,"N1 / 1pt","N2 / 2pts ","N3 / 3pts",null,"N0 / 0.5 pt","N1 / 1pt","N2 / 2pts ","N3 / 3pts",null,"N1 / 1pt","N2 / 2pts ","N3 / 3pts",null,"N1 / 1pt","N2 / 2pts ","N3 / 3pts"]
[{"$f":"CONCATENATE('Bilan EVALUATION BAD'!A2,\" \",'Bilan EVALUATION BAD'!B2)","v":" "},null,null,null,{"$f":"IF(SUM(B5:D5)>0,IF(SUM(B5:D5)>=3,\"TB\",IF(SUM(B5:D5)>=2,\"MS\",\"MF\")),\"NNot\")","v":"NNot"},null,null,null,null,{"$f":"IF(SUM(F5:I5)=0,\"NNot\",IF(SUM(F5:I5)>=3,\"TB\",IF(SUM(F5:I5)>=2,\"MS\",IF(SUM(F5:I5)>=1.5,\"MF\",\"MI\"))))","v":"NNot"},null,null,null,{"$f":"IF(SUM(K5:M5)>0,IF(SUM(K5:M5)>=3,\"TB\",IF(SUM(K5:M5)>=2,\"MS\",\"MF\")),\"NNot\")","v":"NNot"},null,null,null,{"$f":"IF(SUM(O5:Q5)>0,IF(SUM(O5:Q5)>=3,\"TB\",IF(SUM(O5:Q5)>=2,\"MS\",\"MF\")),\"NNot\")","v":"NNot"},{"$f":"IF(SUM(B5:Q5)>0,SUM(B5:Q5),\"\")","v":""},{"$f":"SUM(B5:D5,K5:M5,O5:Q5)/9","v":0},{"$f":"IF(T5=0,\"NNot\",IF(T5>0.8,\"TB\",IF(T5>0.6,\"MS\",IF(T5>0.4,\"MF\",IF(T5>0.01,\"MI\")))))","v":"NNot"},{"$f":"J5","v":"NNot"}]
[{"$f":"CONCATENATE('Bilan EVALUATION BAD'!A3,\" \",'Bilan EVALUATION BAD'!B3)","v":" "},null,null,null,{"$f":"IF(SUM(B6:D6)>0,IF(SUM(B6:D6)>=3,\"TB\",IF(SUM(B6:D6)>=2,\"MS\",\"MF\")),\"NNot\")","v":"NNot"},null,null,null,null,{"$f":"IF(SUM(F6:I6)=0,\"NNot\",IF(SUM(F6:I6)>=3,\"TB\",IF(SUM(F6:I6)>=2,\"MS\",IF(SUM(F6:I6)>=1.5,\"MF\",\"MI\"))))","v":"NNot"},null,null,null,{"$f":"IF(SUM(K6:M6)>0,IF(SUM(K6:M6)>=3,\"TB\",IF(SUM(K6:M6)>=2,\"MS\",\"MF\")),\"NNot\")","v":"NNot"},null,null,null,{"$f":"IF(SUM(O6:Q6)>0,IF(SUM(O6:Q6)>=3,\"TB\",IF(SUM(O6:Q6)>=2,\"MS\",\"MF\")),\"NNot\")","v":"NNot"},{"$f":"IF(SUM(B6:Q6)>0,SUM(B6:Q6),\"\")","v":""},{"$f":"SUM(B6:D6,K6:M6,O6:Q6)/9","v":0},{"$f":"IF(T6=0,\"NNot\",IF(T6>0.8,\"TB\",IF(T6>0.6,\"MS\",IF(T6>0.4,\"MF\",IF(T6>0.01,\"MI\")))))","v":"NNot"},{"$f":"J6","v":"NNot"}]
[{"$f":"CONCATENATE('Bilan EVALUATION BAD'!A4,\" \",'Bilan EVALUATION BAD'!B4)","v":" "},null,null,null,"NNot",null,null,null,null,"NNot",null,null,null,"NNot",null,null,null,"NNot","",0,"NNot","NNot"]
[{"$f":"CONCATENATE('Bilan EVALUATION BAD'!A5,\" \",'Bilan EVALUATION BAD'!B5)","v":" "},null,null,null,"NNot",null,null,null,null,"NNot",null,null,null,"NNot",null,null,null,"NNot","",0,"NNot","NNot"]
[{"$f":"CONCATENATE('Bilan EVALUATION BAD'!A6,\" \",'Bilan EVALUATION BAD'!B6)","v":" "},null,null,null,"NNot",null,null,null,null,"NNot",null,null,null,"NNot",null,null,null,"NNot","",0,"NNot","NNot"]
[{"$f":"CONCATENATE('Bilan EVALUATION BAD'!A7,\" \",'Bilan EVALUATION BAD'!B7)","v":" "},null,null,null,"NNot",null,null,null,null,"NNot",null,null,null,"NNot",null,null,null,"NNot","",0,"NNot","NNot"]
[{"$f":"CONCATENATE('Bilan EVALUATION BAD'!A8,\" \",'Bilan EVALUATION BAD'!B8)","v":" "},null,null,null,"NNot",null,null,null,null,"NNot",null,null,null,"NNot",null,null,null,"NNot","",0,"NNot","NNot"]
[{"$f":"CONCATENATE('Bilan EVALUATION BAD'!A9,\" \",'Bilan EVALUATION BAD'!B9)","v":" "},null,null,null,"NNot",null,null,null,null,"NNot",null,null,null,"NNot",null,null,null,"NNot","",0,"NNot","NNot"]
[{"$f":"CONCATENATE('Bilan EVALUATION BAD'!A10,\" \",'Bilan EVALUATION BAD'!B10)","v":" "},null,null,null,"NNot",null,null,null,null,"NNot",null,null,null,"NNot",null,null,null,"NNot","",0,"NNot","NNot"]
[{"$f":"CONCATENATE('Bilan EVALUATION BAD'!A11,\" \",'Bilan EVALUATION BAD'!B11)","v":" "},null,null,null,"NNot",null,null,null,null,"NNot",null,null,null,"NNot",null,null,null,"NNot","",0,"NNot","NNot"]
[{"$f":"CONCATENATE('Bilan EVALUATION BAD'!A12,\" \",'Bilan EVALUATION BAD'!B12)","v":" "},null,null,null,"NNot",null,null,null,null,"NNot",null,null,null,"NNot",null,null,null,"NNot","",0,"NNot","NNot"]
[{"$f":"CONCATENATE('Bilan EVALUATION BAD'!A13,\" \",'Bilan EVALUATION BAD'!B13)","v":" "},null,null,null,"NNot",null,null,null,null,"NNot",null,null,null,"NNot",null,null,null,"NNot","",0,"NNot","NNot"]
[{"$f":"CONCATENATE('Bilan EVALUATION BAD'!A14,\" \",'Bilan EVALUATION BAD'!B14)","v":" "},null,null,null,"NNot",null,null,null,null,"NNot",null,null,null,"NNot",null,null,null,"NNot","",0,"NNot","NNot"]
[{"$f":"CONCATENATE('Bilan EVALUATION BAD'!A15,\" \",'Bilan EVALUATION BAD'!B15)","v":" "},null,null,null,"NNot",null,null,null,null,"NNot",null,null,null,"NNot",null,null,null,"NNot","",0,"NNot","NNot"]
[{"$f":"CONCATENATE('Bilan EVALUATION BAD'!A16,\" \",'Bilan EVALUATION BAD'!B16)","v":" "},null,null,null,"NNot",null,null,null,null,"NNot",null,null,null,"NNot",null,null,null,"NNot","",0,"NNot","NNot"]
[{"$f":"CONCATENATE('Bilan EVALUATION BAD'!A17,\" \",'Bilan EVALUATION BAD'!B17)","v":" "},null,null,null,"NNot",null,null,null,null,"NNot",null,null,null,"NNot",null,null,null,"NNot","",0,"NNot","NNot"]
[{"$f":"CONCATENATE('Bilan EVALUATION BAD'!A18,\" \",'Bilan EVALUATION BAD'!B18)","v":" "},null,null,null,"NNot",null,null,null,null,"NNot",null,null,null,"NNot",null,null,null,"NNot","",0,"NNot","NNot"]
[{"$f":"CONCATENATE('Bilan EVALUATION BAD'!A19,\" \",'Bilan EVALUATION BAD'!B19)","v":" "},null,null,null,"NNot",null,null,null,null,"NNot",null,null,null,"NNot",null,null,null,"NNot","",0,"NNot","NNot"]
[{"$f":"CONCATENATE('Bilan EVALUATION BAD'!A20,\" \",'Bilan EVALUATION BAD'!B20)","v":" "},null,null,null,"NNot",null,null,null,null,"NNot",null,null,null,"NNot",null,null,null,"NNot","",0,"NNot","NNot"]
[{"$f":"CONCATENATE('Bilan EVALUATION BAD'!A21,\" \",'Bilan EVALUATION BAD'!B21)","v":" "},null,null,null,"NNot",null,null,null,null,"NNot",null,null,null,"NNot",null,null,null,"NNot","",0,"NNot","NNot"]
[{"$f":"CONCATENATE('Bilan EVALUATION BAD'!A22,\" \",'Bilan EVALUATION BAD'!B22)","v":" "},null,null,null,"NNot",null,null,null,null,"NNot",null,null,null,"NNot",null,null,null,"NNot","",0,"NNot","NNot"]
[{"$f":"CONCATENATE('Bilan EVALUATION BAD'!A23,\" \",'Bilan EVALUATION BAD'!B23)","v":" "},null,null,null,"NNot",null,null,null,null,"NNot",null,null,null,"NNot",null,null,null,"NNot","",0,"NNot","NNot"]
[{"$f":"CONCATENATE('Bilan EVALUATION BAD'!A24,\" \",'Bilan EVALUATION BAD'!B24)","v":" "},null,null,null,"NNot",null,null,null,null,"NNot",null,null,null,"NNot",null,null,null,"NNot","",0,"NNot","NNot"]
[{"$f":"CONCATENATE('Bilan EVALUATION BAD'!A25,\" \",'Bilan EVALUATION BAD'!B25)","v":" "},null,null,null,"NNot",null,null,null,null,"NNot",null,null,null,"NNot",null,null,null,"NNot","",{"$f":"SUM(B28:D28,K28:M28,O28:Q28)/9","v":0},"NNot","NNot"]
[{"$f":"CONCATENATE('Bilan EVALUATION BAD'!A26,\" \",'Bilan EVALUATION BAD'!B26)","v":" "},null,null,null,"NNot",null,null,null,null,"NNot",null,null,null,"NNot",null,null,null,"NNot","",0,"NNot","NNot"]
[{"$f":"CONCATENATE('Bilan EVALUATION BAD'!A27,\" \",'Bilan EVALUATION BAD'!B27)","v":" "},null,null,null,"NNot",null,null,null,null,"NNot",null,null,null,"NNot",null,null,null,"NNot","",0,"NNot","NNot"]
[{"$f":"CONCATENATE('Bilan EVALUATION BAD'!A28,\" \",'Bilan EVALUATION BAD'!B28)","v":" "},null,null,null,"NNot",null,null,null,null,"NNot",null,null,null,"NNot",null,null,null,"NNot","",0,"NNot","NNot"]

{"sheet":"BAD Evaluation-Perf 6pts","index":3,"n_rows":31,"n_cols":7,"rows_kept":31,"cut":false,"hidden":false,"merged":[[0,0,0,8]]}
["PERFORMANCE"]
["Elèves","Fille ou Garçon","Terrain 1 à 7\n(le 1 étant le meilleur)","Note brute avant coef","Classement 1er à 6ème","Coef de perf","Note /6 pts"]
[{"$f":"CONCATENATE('Bilan EVALUATION BAD'!A2,\" \",'Bilan EVALUATION BAD'!B2)","v":" "},{"$f":"'Bilan EVALUATION BAD'!C2","v":0},null,{"$f":"IF(C3=\"Disp\",0,IF(C3>0,7.166666667-(C3*0.63),0))","v":0},null,{"$f":"IF(E3=1,1.2245,IF(E3=2,1.15,IF(E3=3,1.1,IF(E3=4,1.05,IF(E3>4,0.95,0)))))","v":0},{"$f":"IF(OR(B3=\"\",C3=\"Disp\"),\"F,G,Disp?\",IF(B3=\"G\",((F3*D3)/8)*6,IF((((F3*D3)/8)*6+1)>6,6,((F3*D3)/8)*6+1)))","v":1}]
[{"$f":"CONCATENATE('Bilan EVALUATION BAD'!A3,\" \",'Bilan EVALUATION BAD'!B3)","v":" "},{"$f":"'Bilan EVALUATION BAD'!C3","v":0},null,0,null,{"$f":"IF(E4=1,1.2245,IF(E4=2,1.15,IF(E4=3,1.1,IF(E4=4,1.05,0))))","v":0},1]
[{"$f":"CONCATENATE('Bilan EVALUATION BAD'!A4,\" \",'Bilan EVALUATION BAD'!B4)","v":" "},{"$f":"'Bilan EVALUATION BAD'!C4","v":0},null,0,null,0,1]
[{"$f":"CONCATENATE('Bilan EVALUATION BAD'!A5,\" \",'Bilan EVALUATION BAD'!B5)","v":" "},{"$f":"'Bilan EVALUATION BAD'!C5","v":0},null,0,null,0,1]
[{"$f":"CONCATENATE('Bilan EVALUATION BAD'!A6,\" \",'Bilan EVALUATION BAD'!B6)","v":" "},{"$f":"'Bilan EVALUATION BAD'!C6","v":0},null,0,null,0,1]
[{"$f":"CONCATENATE('Bilan EVALUATION BAD'!A7,\" \",'Bilan EVALUATION BAD'!B7)","v":" "},{"$f":"'Bilan EVALUATION BAD'!C7","v":0},null,0,null,0,1]
[{"$f":"CONCATENATE('Bilan EVALUATION BAD'!A8,\" \",'Bilan EVALUATION BAD'!B8)","v":" "},{"$f":"'Bilan EVALUATION BAD'!C8","v":0},null,0,null,0,1]
[{"$f":"CONCATENATE('Bilan EVALUATION BAD'!A9,\" \",'Bilan EVALUATION BAD'!B9)","v":" "},{"$f":"'Bilan EVALUATION BAD'!C9","v":0},null,0,null,0,1]
[{"$f":"CONCATENATE('Bilan EVALUATION BAD'!A10,\" \",'Bilan EVALUATION BAD'!B10)","v":" "},{"$f":"'Bilan EVALUATION BAD'!C10","v":0},null,0,null,0,1]
[{"$f":"CONCATENATE('Bilan EVALUATION BAD'!A11,\" \",'Bilan EVALUATION BAD'!B11)","v":" "},{"$f":"'Bilan EVALUATION BAD'!C11","v":0},null,0,null,0,1]
[{"$f":"CONCATENATE('Bilan EVALUATION BAD'!A12,\" \",'Bilan EVALUATION BAD'!B12)","v":" "},{"$f":"'Bilan EVALUATION BAD'!C12","v":0},null,0,null,0,1]
[{"$f":"CONCATENATE('Bilan EVALUATION BAD'!A13,\" \",'Bilan EVALUATION BAD'!B13)","v":" "},{"$f":"'Bilan EVALUATION BAD'!C13","v":0},null,0,null,0,1]
[{"$f":"CONCATENATE('Bilan EVALUATION BAD'!A14,\" \",'Bilan EVALUATION BAD'!B14)","v":" "},{"$f":"'Bilan EVALUATION BAD'!C14","v":0},null,0,null,0,1]
[{"$f":"CONCATENATE('Bilan EVALUATION BAD'!A15,\" \",'Bilan EVALUATION BAD'!B15)","v":" "},{"$f":"'Bilan EVALUATION BAD'!C15","v":0},null,0,null,0,1]
[{"$f":"CONCATENATE('Bilan EVALUATION BAD'!A16,\" \",'Bilan EVALUATION BAD'!B16)","v":" "},{"$f":"'Bilan EVALUATION BAD'!C16","v":0},null,0,null,0,1]
[{"$f":"CONCATENATE('Bilan EVALUATION BAD'!A17,\" \",'Bilan EVALUATION BAD'!B17)","v":" "},{"$f":"'Bilan EVALUATION BAD'!C17","v":0},null,0,null,0,1]
[{"$f":"CONCATENATE('Bilan EVALUATION BAD'!A18,\" \",'Bilan EVALUATION BAD'!B18)","v":" "},{"$f":"'Bilan EVALUATION BAD'!C18","v":0},null,0,null,0,1]
[{"$f":"CONCATENATE('Bilan EVALUATION BAD'!A19,\" \",'Bilan EVALUATION BAD'!B19)","v":" "},{"$f":"'Bilan EVALUATION BAD'!C19","v":0},null,0,null,0,1]
[{"$f":"CONCATENATE('Bilan EVALUATION BAD'!A20,\" \",'Bilan EVALUATION BAD'!B20)","v":" "},{"$f":"'Bilan EVALUATION BAD'!C20","v":0},null,0,null,0,1]
[{"$f":"CONCATENATE('Bilan EVALUATION BAD'!A21,\" \",'Bilan EVALUATION BAD'!B21)","v":" "},{"$f":"'Bilan EVALUATION BAD'!C21","v":0},null,0,null,0,1]
[{"$f":"CONCATENATE('Bilan EVALUATION BAD'!A22,\" \",'Bilan EVALUATION BAD'!B22)","v":" "},{"$f":"'Bilan EVALUATION BAD'!C22","v":0},null,0,null,0,1]
[{"$f":"CONCATENATE('Bilan EVALUATION BAD'!A23,\" \",'Bilan EVALUATION BAD'!B23)","v":" "},{"$f":"'Bilan EVALUATION BAD'!C23","v":0},null,{"$f":"IF(C24=\"Disp\",0,IF(C24>0,7.166666667-(C24*0.63),0))","v":0},null,0,{"$f":"IF(OR(B24=\"\",C24=\"Disp\"),\"F,G,Disp?\",IF(B24=\"G\",((F24*D24)/8)*6,IF((((F24*D24)/8)*6+1)>6,6,((F24*D24)/8)*6+1)))","v":1}]
[{"$f":"CONCATENATE('Bilan EVALUATION BAD'!A24,\" \",'Bilan EVALUATION BAD'!B24)","v":" "},{"$f":"'Bilan EVALUATION BAD'!C24","v":0},null,{"$f":"IF(C25=\"Disp\",0,IF(C25>0,7.166666667-(C25*0.63),0))","v":0},null,0,{"$f":"IF(OR(B25=\"\",C25=\"Disp\"),\"F,G,Disp?\",IF(B25=\"G\",((F25*D25)/8)*6,IF((((F25*D25)/8)*6+1)>6,6,((F25*D25)/8)*6+1)))","v":1}]
[{"$f":"CONCATENATE('Bilan EVALUATION BAD'!A25,\" \",'Bilan EVALUATION BAD'!B25)","v":" "},{"$f":"'Bilan EVALUATION BAD'!C25","v":0},null,0,null,0,1]
[{"$f":"CONCATENATE('Bilan EVALUATION BAD'!A26,\" \",'Bilan EVALUATION BAD'!B26)","v":" "},{"$f":"'Bilan EVALUATION BAD'!C26","v":0},null,0,null,0,1]
[{"$f":"CONCATENATE('Bilan EVALUATION BAD'!A27,\" \",'Bilan EVALUATION BAD'!B27)","v":" "},{"$f":"'Bilan EVALUATION BAD'!C27","v":0},null,0,null,0,1]
[{"$f":"CONCATENATE('Bilan EVALUATION BAD'!A28,\" \",'Bilan EVALUATION BAD'!B28)","v":" "},{"$f":"'Bilan EVALUATION BAD'!C28","v":0},null,0,null,0,1]
[{"$f":"CONCATENATE('Bilan EVALUATION BAD'!A29,\" \",'Bilan EVALUATION BAD'!B29)","v":" "},{"$f":"'Bilan EVALUATION BAD'!C29","v":0},null,{"$f":"IF(C30=\"Disp\",0,IF(C30>0,7.166666667-(C30*0.63),0))","v":0},null,{"$f":"IF(E30=1,1.2245,IF(E30=2,1.15,IF(E30=3,1.1,IF(E30=4,1.05,0))))","v":0},{"$f":"IF(OR(B30=\"\",C30=\"Disp\"),\"F,G,Disp?\",IF(B30=\"G\",((F30*D30)/8)*6,IF((((F30*D30)/8)*6+1)>6,6,((F30*D30)/8)*6+1)))","v":1}]
[{"$f":"CONCATENATE('Bilan EVALUATION BAD'!A30,\" \",'Bilan EVALUATION BAD'!B30)","v":" "},{"$f":"'Bilan EVALUATION BAD'!C30","v":0},null,0,null,0,1]

{"sheet":"BAD Evaluation-Arbitrage 2pts","index":4,"n_rows":29,"n_cols":4,"rows_kept":29,"cut":false,"hidden":false,"merged":[[0,4,0,12]]}
["NOM","PRENOM","Fille ou Garçon","Règles + Arbitrage\nNote sur 2 pts"]
[{"$f":"'Bilan EVALUATION BAD'!A2","v":0},{"$f":"'Bilan EVALUATION BAD'!B2","v":0},{"$f":"'Bilan EVALUATION BAD'!C2","v":0}]
[{"$f":"'Bilan EVALUATION BAD'!A3","v":0},{"$f":"'Bilan EVALUATION BAD'!B3","v":0},{"$f":"'Bilan EVALUATION BAD'!C3","v":0}]
[{"$f":"'Bilan EVALUATION BAD'!A4","v":0},{"$f":"'Bilan EVALUATION BAD'!B4","v":0},{"$f":"'Bilan EVALUATION BAD'!C4","v":0}]
[{"$f":"'Bilan EVALUATION BAD'!A5","v":0},{"$f":"'Bilan EVALUATION BAD'!B5","v":0},{"$f":"'Bilan EVALUATION BAD'!C5","v":0}]
[{"$f":"'Bilan EVALUATION BAD'!A6","v":0},{"$f":"'Bilan EVALUATION BAD'!B6","v":0},{"$f":"'Bilan EVALUATION BAD'!C6","v":0}]
[{"$f":"'Bilan EVALUATION BAD'!A7","v":0},{"$f":"'Bilan EVALUATION BAD'!B7","v":0},{"$f":"'Bilan EVALUATION BAD'!C7","v":0}]
[{"$f":"'Bilan EVALUATION BAD'!A8","v":0},{"$f":"'Bilan EVALUATION BAD'!B8","v":0},{"$f":"'Bilan EVALUATION BAD'!C8","v":0}]
[{"$f":"'Bilan EVALUATION BAD'!A9","v":0},{"$f":"'Bilan EVALUATION BAD'!B9","v":0},{"$f":"'Bilan EVALUATION BAD'!C9","v":0}]
[{"$f":"'Bilan EVALUATION BAD'!A10","v":0},{"$f":"'Bilan EVALUATION BAD'!B10","v":0},{"$f":"'Bilan EVALUATION BAD'!C10","v":0}]
[{"$f":"'Bilan EVALUATION BAD'!A11","v":0},{"$f":"'Bilan EVALUATION BAD'!B11","v":0},{"$f":"'Bilan EVALUATION BAD'!C11","v":0}]
[{"$f":"'Bilan EVALUATION BAD'!A12","v":0},{"$f":"'Bilan EVALUATION BAD'!B12","v":0},{"$f":"'Bilan EVALUATION BAD'!C12","v":0}]
[{"$f":"'Bilan EVALUATION BAD'!A13","v":0},{"$f":"'Bilan EVALUATION BAD'!B13","v":0},{"$f":"'Bilan EVALUATION BAD'!C13","v":0}]
[{"$f":"'Bilan EVALUATION BAD'!A14","v":0},{"$f":"'Bilan EVALUATION BAD'!B14","v":0},{"$f":"'Bilan EVALUATION BAD'!C14","v":0}]
[{"$f":"'Bilan EVALUATION BAD'!A15","v":0},{"$f":"'Bilan EVALUATION BAD'!B15","v":0},{"$f":"'Bilan EVALUATION BAD'!C15","v":0}]
[{"$f":"'Bilan EVALUATION BAD'!A16","v":0},{"$f":"'Bilan EVALUATION BAD'!B16","v":0},{"$f":"'Bilan EVALUATION BAD'!C16","v":0}]
[{"$f":"'Bilan EVALUATION BAD'!A17","v":0},{"$f":"'Bilan EVALUATION BAD'!B17","v":0},{"$f":"'Bilan EVALUATION BAD'!C17","v":0}]
[{"$f":"'Bilan EVALUATION BAD'!A18","v":0},{"$f":"'Bilan EVALUATION BAD'!B18","v":0},{"$f":"'Bilan EVALUATION BAD'!C18","v":0}]
[{"$f":"'Bilan EVALUATION BAD'!A19","v":0},{"$f":"'Bilan EVALUATION BAD'!B19","v":0},{"$f":"'Bilan EVALUATION BAD'!C19","v":0}]
[{"$f":"'Bilan EVALUATION BAD'!A20","v":0},{"$f":"'Bilan EVALUATION BAD'!B20","v":0},{"$f":"'Bilan EVALUATION BAD'!C20","v":0}]
[{"$f":"'Bilan EVALUATION BAD'!A21","v":0},{"$f":"'Bilan EVALUATION BAD'!B21","v":0},{"$f":"'Bilan EVALUATION BAD'!C21","v":0}]
[{"$f":"'Bilan EVALUATION BAD'!A22","v":0},{"$f":"'Bilan EVALUATION BAD'!B22","v":0},{"$f":"'Bilan EVALUATION BAD'!C22","v":0}]
[{"$f":"'Bilan EVALUATION BAD'!A23","v":0},{"$f":"'Bilan EVALUATION BAD'!B23","v":0},{"$f":"'Bilan EVALUATION BAD'!C23","v":0}]
[{"$f":"'Bilan EVALUATION BAD'!A24","v":0},{"$f":"'Bilan EVALUATION BAD'!B24","v":0},{"$f":"'Bilan EVALUATION BAD'!C24","v":0}]
[{"$f":"'Bilan EVALUATION BAD'!A25","v":0},{"$f":"'Bilan EVALUATION BAD'!B25","v":0},{"$f":"'Bilan EVALUATION BAD'!C25","v":0}]
[{"$f":"'Bilan EVALUATION BAD'!A26","v":0},{"$f":"'Bilan EVALUATION BAD'!B26","v":0},{"$f":"'Bilan EVALUATION BAD'!C26","v":0}]
[{"$f":"'Bilan EVALUATION BAD'!A27","v":0},{"$f":"'Bilan EVALUATION BAD'!B27","v":0},{"$f":"'Bilan EVALUATION BAD'!C27","v":0}]
[{"$f":"'Bilan EVALUATION BAD'!A28","v":0},{"$f":"'Bilan EVALUATION BAD'!B28","v":0},{"$f":"'Bilan EVALUATION BAD'!C28","v":0}]
[{"$f":"'Bilan EVALUATION BAD'!A29","v":0},{"$f":"'Bilan EVALUATION BAD'!B29","v":0},{"$f":"'Bilan EVALUATION BAD'!C29","v":0}]

{"sheet":"Critères Evaluation BAD","index":5,"n_rows":26,"n_cols":7,"rows_kept":26,"cut":false,"hidden":false,"merged":[[0,2,0,6],[24,0,25,0],[22,0,23,0],[18,0,21,0],[2,5,2,6],[2,0,4,0],[7,0,10,0],[13,0,15,0]]}
[null,null,"Critères d'évaluation de la maîtrise en situation d'affrontement  -  BADMINTON"]
["Items","Placement / volant sur frappe haute",null,"Niveau de maîtrise"]
["ATTENDU\nn° 1","En retard non provoqué (efficacité faible)","N1","MF",null,"Rappel des ATTENDUS"]
[null,"Excentré (efficacité moyenne)","N2","MS",null,"ATTENDU n° 1","Réaliser des actions décisives en situation favorable afin de faire basculer le rapport de force en sa faveur ou en faveur de son équipe"]
[null,"Sous le volant (efficacité optimale)","N3","TB",null,"ATTENDU n° 2","Adapter son engagement moteur en fonction de son état physique et du rapport de force"]
[null,null,null,null,null,"ATTENDU n° 3","Être solidaire de ses partenaires et respectueux de son (ses) adversaire(s) et de l’arbitre"]
[null,"Replacement / Terrain (condition initiale: déplacement 1er)",null,"Niveau de maîtrise",null,"ATTENDU n° 4","Observer et co-arbitrer"]
["ATTENDU\nn° 2","Ne se replace pas au centre après frappe (efficacité faible)","N1","MI",null,"ATTENDU n° 5","Accepter le résultat de la rencontre et savoir analyser avec objectivité"]
[null,"Se replace parfois et/ou mal centré (efficacité réduite)","N2","MF"]
[null,"Se replace en retard (efficacité moyenne / \"contre-pied\")","N3","MS"]
[null,"Se replace dès la frappe (efficacité optimale)","N3+","TB"]
[]
[null,"Cible au sol",null,"Niveau de maîtrise"]
["ATTENDU\nn° 1","Zone 1 (centrale - efficacité faible)","N1","MF"]
[null,"Zone 2 + Alternance 1 zone (efficacité moyenne)","N2","MS"]
[null,"Zone 3 + Alternance 2 zones (efficacité optimale)","N3","TB"]
[]
[null,"Trajectoires du volant",null,"Niveau de maîtrise"]
["ATTENDU\nn° 1","Hautes favorables à l'adversaire / Exposition au smash en avançant (efficacité faible)","N1","MF"]
[null,"Hautes défavorables à l'adversaire / déséquilibre provoqué (efficacité moyenne)","N2","MS"]
[null,"Rasant le filet réduisant le temps de réaction adverse (efficacité optimale)","N3","TB"]
[]
["ATTENDU\nn° 4","Connaissance des règles (limites-Zone de service/score) - Arbitrer avec impartialité"]
[null,"0  -  1  -  2"]
["ATTENDU\nn° 5","Implication dans l'activité: Ecoute / Suivi des consignes / Analyse de ses résultats / Etudier le profil de l'adversaire"]
[null,"0  -  1  -  2"]

{"sheet":"Attendus FinCycle-Compétences","index":6,"n_rows":17,"n_cols":3,"rows_kept":17,"cut":false,"hidden":false,"merged":[[5,0,5,1],[6,0,6,1],[8,0,8,1],[0,1,0,2],[1,0,1,1],[2,0,2,1],[3,0,3,1],[4,0,4,1]]}
[null,"COMPÉTENCE ATTENDUE\nRechercher, dans le respect du règlement et du fair-play, le gain d’un match en adaptant son jeu en fonction de son statut dans l’échange, en orientant le jeu en dehors du centre du terrain et loin de l’adversaire, en exploitant les volants favorables jusqu’au mi-court. Arbitrer, organiser des rencontres, observer, conseiller et aider un partenaire à apprendre."]
["DECLINAISON DES ATTENDUS DE FIN DE CYCLE",null,"Domaines d'apprentissages représentés"]
["Attendu n°1: Réaliser des actions décisives en situation favorable afin de faire basculer le rapport de force en sa faveur ou en faveur de son équipe",null,"Domaine 1: \nLes langages pour penser et communiquer"]
["Attendu n°2: Adapter son engagement moteur en fonction de son état physique et du rapport de force",null,"Domaine 1: \nLes langages pour penser et communiquer"]
["Attendu n°3: Être solidaire de ses partenaires et respectueux de son (ses) adversaire(s) et de l’arbitre",null,"Domaine 3: \nLa formation de la personne et du citoyen"]
["Attendu n°4: Observer et co-arbitrer",null,"Domaine 2: Les méthodes et outils pour apprendre"]
["Attendu n°5: Accepter le résultat de la rencontre et savoir analyser avec objectivité",null,"Domaine 3: \nLa formation de la personne et du citoyen"]
[]
["ATTENDUS DE FIN DE CYCLE ET CONTENUS D'ENSEIGNEMENT",null,"Domaines d'apprentissages représentés"]
["Attendu n°1","Construire le point et marquer en jouant loin du centre et en déplaçant son adversaire (jouer loin de lui dans les espaces libres)","Domaine 1: \nLes langages pour penser et communiquer"]
["Attendu n°1","Exploiter un volant haut dans la 1ère moitié du court par une frappe tendue descendante et rapide (smash)","Domaine 1: \nLes langages pour penser et communiquer"]
["Attendu n°1","Construire le point pour marquer à partir de schémas tactiques simples (dès le service)","Domaine 1: \nLes langages pour penser et communiquer"]
["Attendu n°2","Construire une motricité de base adaptée (techniquement et tactiquement). ","Domaine 2: Les méthodes et outils pour apprendre"]
["Attendu n°3","Le partenaire module son niveau d’engagement entre partenariat et opposition","Domaine 3: \nLa formation de la personne et du citoyen"]
["Attendu n°4","Arbitrer de manière impartiale","Domaine 2: Les méthodes et outils pour apprendre"]
["Attendu n°4","Gérer efficacement les matchs","Domaine 2: Les méthodes et outils pour apprendre"]
["Attendu n°5","L’observateur, le coach qui conseille pour aider le joueur à gérer le rapport de force.","Domaine 3: \nLa formation de la personne et du citoyen"]